bitfinex/quotes_BTCUSD_20240723
["timestamp","ask_amount","ask_price","bid_price","bid_amount"]
[1721709535455,7.17859513,67296.0,67295.0,8.98755685]
[1721709535955,7.17859513,67296.0,67295.0,9.28475485]
[1721709536388,8.07690508,67296.0,67295.0,8.83895785]
[1721709536611,8.17690508,67296.0,67295.0,8.83895785]
[1721709536811,8.54005814,67296.0,67295.0,8.83895785]
[1721709537027,8.47409908,67296.0,67295.0,8.83895785]
[1721709537227,8.47309908,67296.0,67295.0,8.82595785]
[1721709537451,8.5610445,67296.0,67295.0,8.82595785]
[1721709537657,8.5620445,67296.0,67295.0,8.82095785]
[1721709538074,8.5620445,67296.0,67295.0,8.81395785]
[1721709538075,8.68041449,67296.0,67295.0,8.81395785]
[1721709538295,8.59246399,67296.0,67295.0,8.74535785]
[1721709538495,8.70239576,67296.0,67295.0,8.74835785]
[1721709538699,8.70239576,67296.0,67295.0,8.75035785]
[1721709540023,8.7018114,67296.0,67295.0,8.75035785]
[1721709541036,8.29481988,67296.0,67295.0,8.75035785]
[1721709541244,7.92262521,67296.0,67295.0,8.75035785]
[1721709541677,7.87871108,67296.0,67295.0,8.75035785]
[1721709541878,8.17590508,67296.0,67295.0,8.75035785]
[1721709542495,7.87871108,67296.0,67295.0,8.75035785]
[1721709542966,7.58235708,67296.0,67295.0,8.75035785]
[1721709543103,7.35796008,67296.0,67295.0,8.89895685]
[1721709543329,7.17843513,67296.0,67295.0,9.19615485]
[1721709543747,7.17843513,67296.0,67295.0,8.89895685]
[1721709543944,7.17843513,67296.0,67295.0,8.89695685]
[1721709544195,7.17843513,67296.0,67295.0,8.89395685]
[1721709544397,7.17843513,67296.0,67295.0,8.89595685]
[1721709544599,7.17843513,67296.0,67295.0,8.89395685]
[1721709545012,7.17843513,67296.0,67295.0,8.75835785]
[1721709545653,7.17143513,67296.0,67295.0,8.75835785]
[1721709545859,7.33545708,67296.0,67295.0,8.75835785]
[1721709546076,7.63265108,67296.0,67295.0,8.75835785]
[1721709546269,7.77025108,67296.0,67295.0,8.75835785]
[1721709546713,7.77025108,67296.0,67295.0,8.75535785]
[1721709547138,8.06844508,67296.0,67295.0,8.76435785]
[1721709547363,7.77125108,67296.0,67295.0,8.76435785]
[1721709547568,8.06844508,67296.0,67295.0,8.76435785]
[1721709547775,8.46563908,67296.0,67295.0,8.76435785]
[1721709547971,8.50954984,67296.0,67295.0,8.76435785]
[1721709548180,8.46563908,67296.0,67295.0,8.76435785]
[1721709549018,8.76283308,67296.0,67295.0,8.76435785]
[1721709549442,8.64900068,67296.0,67295.0,8.76435785]
[1721709549662,8.64900243,67296.0,67295.0,8.76435785]
[1721709549870,8.64800243,67296.0,67295.0,8.75535785]
[1721709550075,8.46463908,67296.0,67295.0,8.75835785]
[1721709550341,8.62602981,67296.0,67295.0,8.75835785]
[1721709550581,8.62602981,67296.0,67295.0,8.74535785]
[1721709550582,8.58216034,67296.0,67295.0,8.74535785]
[1721709550819,8.58216034,67296.0,67295.0,8.74735785]
[1721709551048,8.6479724,67296.0,67295.0,8.74835785]
[1721709551265,8.58204188,67296.0,67295.0,8.75035785]
[1721709551500,8.87923588,67296.0,67295.0,8.75035785]
[1721709551798,9.68299853,67296.0,67295.0,7.76659345]
[1721709552003,10.17823468,67296.0,67295.0,7.54941266]
[1721709552205,10.17823468,67296.0,67295.0,7.47166426]
[1721709552440,10.11603468,67296.0,67295.0,7.31590426]
[1721709552649,10.11603468,67296.0,67295.0,7.19702426]
[1721709552650,10.43622868,67296.0,67295.0,7.19702426]
[1721709552858,10.43622868,67296.0,67295.0,7.19402426]
[1721709553063,10.44889907,67296.0,67295.0,6.58525197]
[1721709553265,10.44889907,67296.0,67295.0,6.53051197]
[1721709553472,10.40209907,67296.0,67295.0,6.21330197]
[1721709553699,10.40209907,67296.0,67295.0,6.07236491]
[1721709553700,10.5175497,67296.0,67295.0,6.07236491]
[1721709553905,10.5175497,67296.0,67295.0,5.97979573]
[1721709553906,10.38349907,67296.0,67295.0,5.97979573]
[1721709554154,10.38594627,67296.0,67295.0,5.92972573]
[1721709554352,10.38394627,67296.0,67295.0,5.92972573]
[1721709554558,10.12005412,67296.0,67295.0,5.81184573]
[1721709554764,10.12005412,67296.0,67295.0,5.67055573]
[1721709554765,10.38552823,67296.0,67295.0,5.67055573]
[1721709555188,10.37152823,67296.0,67295.0,5.66955573]
[1721709555408,10.46076823,67296.0,67295.0,4.79261916]
[1721709555614,10.60852658,67296.0,67295.0,4.54893082]
[1721709555819,10.46076823,67296.0,67295.0,4.5399985]
[1721709556023,10.46076823,67296.0,67295.0,4.5099985]
[1721709556237,10.46076823,67296.0,67295.0,4.4137785]
[1721709556669,10.46076823,67296.0,67295.0,4.3840585]
[1721709556888,10.47476823,67296.0,67295.0,4.2661785]
[1721709557010,10.60599212,67296.0,67295.0,4.2661785]
[1721709557210,10.46076823,67296.0,67295.0,4.2651785]
[1721709558007,10.47476823,67296.0,67295.0,4.2661785]
[1721709558252,10.47476823,67296.0,67295.0,4.25277081]
[1721709558454,10.47476823,67296.0,67295.0,4.16597081]
[1721709558867,9.97894474,67296.0,67295.0,4.16597081]
[1721709559064,10.02881504,67296.0,67295.0,4.16597081]
[1721709559268,9.44417758,67296.0,67295.0,4.16597081]
[1721709559440,9.4867511,67296.0,67295.0,4.16597081]
[1721709559678,9.47117758,67296.0,67295.0,4.16597081]
[1721709559865,9.27288218,67296.0,67295.0,4.16597081]
[1721709560244,9.34092847,67296.0,67295.0,4.16597081]
[1721709560540,8.81608218,67296.0,67295.0,4.16597081]
[1721709560743,9.01608218,67296.0,67295.0,4.16597081]
[1721709560941,9.42288218,67296.0,67295.0,4.16597081]
[1721709561148,9.66660087,67296.0,67295.0,4.16597081]
[1721709561410,9.62288218,67296.0,67295.0,4.16597081]
[1721709561521,9.76984483,67296.0,67295.0,4.16597081]
[1721709561734,9.76984483,67296.0,67295.0,3.92903798]
[1721709561735,10.11075752,67296.0,67295.0,3.92903798]
[1721709561939,10.15447622,67296.0,67295.0,3.92903798]
[1721709562142,10.17744546,67296.0,67295.0,3.92903798]
[1721709562365,10.17744533,67296.0,67295.0,3.92903798]
[1721709562931,10.19845487,67296.0,67295.0,3.91329798]
[1721709563110,10.19845487,67296.0,67295.0,3.78272798]
[1721709563526,10.17659831,67296.0,67295.0,3.78272798]
[1721709563730,10.08918783,67296.0,67295.0,3.78272798]
[1721709563934,9.88123383,67296.0,67295.0,3.27166388]
[1721709564140,9.88123383,67296.0,67295.0,0.18466349]
[1721709564141,11.65969465,67296.0,67295.0,0.18466349]
[1721709564374,11.65969465,67296.0,67250.0,0.1418]
[1721709564375,0.85545,67272.0,67271.0,0.17687695]
[1721709564589,0.996002,67264.0,67227.0,0.306705]
[1721709564804,2.2830732,67264.0,67244.0,0.0626]
[1721709565020,2.57405737,67264.0,67244.0,0.0626]
[1721709565428,1.68337018,67263.0,67262.0,0.001392]
[1721709565633,1.70523435,67263.0,67262.0,0.001392]
[1721709565833,1.73548108,67263.0,67262.0,0.001392]
[1721709566033,1.78268708,67263.0,67262.0,0.001392]
[1721709566246,1.65901334,67263.0,67262.0,0.001392]
[1721709566452,1.827709,67263.0,67262.0,0.001392]
[1721709566664,2.46156086,67263.0,67262.0,0.001392]
[1721709566872,2.21439663,67263.0,67262.0,0.001392]
[1721709567075,2.16439663,67263.0,67262.0,0.001392]
[1721709567699,2.12839663,67263.0,67262.0,0.001392]
[1721709567905,1.8467716,67263.0,67262.0,0.001392]
[1721709568110,2.0467716,67263.0,67262.0,0.001392]
[1721709568334,2.04659583,67263.0,67262.0,0.001392]
[1721709568976,2.11059583,67263.0,67262.0,0.001392]
[1721709569176,2.1445505,67263.0,67262.0,0.001392]
[1721709569404,1.8945505,67263.0,67262.0,0.001392]
[1721709569603,1.65148177,67263.0,67262.0,0.001392]
[1721709569814,1.30645583,67263.0,67262.0,0.001392]
[1721709570046,1.29245583,67263.0,67262.0,0.001392]
[1721709570237,1.30645583,67263.0,67262.0,0.001392]
[1721709570445,1.31546172,67263.0,67262.0,0.001392]
[1721709571113,1.30146172,67263.0,67262.0,0.001392]
[1721709571323,1.35146172,67263.0,67262.0,0.001392]
[1721709571535,1.19676606,67263.0,67262.0,0.001392]
[1721709571751,1.30043072,67263.0,67262.0,0.001392]
[1721709572375,1.28643072,67263.0,67262.0,0.001392]
[1721709572595,1.30043072,67263.0,67262.0,0.001392]
[1721709573195,1.31443072,67263.0,67262.0,0.001392]
[1721709574227,1.35043072,67263.0,67262.0,0.001392]
[1721709574664,1.66177072,67263.0,67262.0,0.001392]
[1721709574867,1.66261072,67263.0,67262.0,0.001392]
[1721709575283,1.97087541,67263.0,67262.0,0.001392]
[1721709575494,2.06823529,67263.0,67262.0,0.001392]
[1721709575746,2.11592123,67263.0,67262.0,0.001392]
[1721709575994,2.44566179,67263.0,67262.0,0.001392]
[1721709576208,1.644848,67262.0,67261.0,0.059142]
[1721709576422,2.33060065,67262.0,67261.0,0.059142]
[1721709576632,2.44489315,67262.0,67261.0,0.059142]
[1721709577062,2.44489315,67262.0,67261.0,0.046622]
[1721709577275,2.44489315,67262.0,67241.0,0.002]
[1721709577276,1.892681,67242.0,67241.0,0.002]
[1721709577522,0.446215,67232.0,67231.0,0.0631]
[1721709577771,0.446215,67232.0,67231.0,0.1422]
[1721709577772,0.23950793,67232.0,67231.0,0.1422]
[1721709577973,0.12194469,67232.0,67231.0,0.14608245]
[1721709578381,0.23955109,67232.0,67231.0,0.14608245]
[1721709578591,0.12194469,67232.0,67231.0,0.31035139]
[1721709578796,0.02194469,67232.0,67231.0,0.29482245]
[1721709579404,0.02194469,67232.0,67231.0,0.14608245]
[1721709579405,0.02294469,67232.0,67231.0,0.14608245]
[1721709579616,0.02294469,67232.0,67231.0,0.29482245]
[1721709579813,0.4756,67251.0,67244.0,0.0616]
[1721709580016,0.14111638,67250.0,67244.0,0.0616]
[1721709580219,0.023467,67250.0,67248.0,0.079]
[1721709580422,0.020673,67250.0,67248.0,0.079]
[1721709580631,0.020673,67250.0,67249.0,0.00392613]
[1721709581914,0.020673,67250.0,67249.0,0.2523323]
[1721709582135,0.009,67251.0,67250.0,0.496095]
[1721709582348,0.00084,67263.0,67251.0,0.380089]
[1721709582564,0.01967806,67262.0,67261.0,0.231374]
[1721709582787,0.01967806,67262.0,67261.0,0.230374]
[1721709583001,0.01967806,67262.0,67261.0,0.23330013]
[1721709583222,0.01967806,67262.0,67261.0,0.15012613]
[1721709583437,0.01967806,67262.0,67261.0,0.14912613]
[1721709583651,0.01967806,67262.0,67261.0,0.1452]
[1721709583864,0.01967806,67262.0,67261.0,0.14912613]
[1721709584098,0.01967806,67262.0,67261.0,0.59514913]
[1721709584762,0.00084,67263.0,67262.0,0.74336]
[1721709584963,0.01996542,67263.0,67262.0,0.74336]
[1721709585209,0.01996542,67263.0,67262.0,0.74722516]
[1721709585436,0.01996542,67263.0,67262.0,0.00386516]
[1721709586080,0.01996542,67263.0,67262.0,0.15253716]
[1721709586310,0.01996542,67263.0,67262.0,0.44988116]
[1721709586538,0.01996542,67263.0,67262.0,0.45088116]
[1721709587662,0.01996542,67263.0,67262.0,0.15353716]
[1721709587863,0.01996542,67263.0,67262.0,0.00486516]
[1721709588042,0.01996542,67263.0,67262.0,0.15353716]
[1721709588432,0.01996542,67263.0,67262.0,0.00486516]
[1721709589034,0.16863542,67263.0,67262.0,0.00486516]
[1721709589243,0.11996542,67263.0,67262.0,0.00486516]
[1721709589458,0.11996542,67263.0,67262.0,0.001]
[1721709590076,0.11996542,67263.0,67262.0,0.00488257]
[1721709590237,0.01996542,67263.0,67262.0,0.00488257]
[1721709590621,0.01996542,67263.0,67262.0,0.001]
[1721709590826,0.01996542,67263.0,67262.0,0.00488257]
[1721709591847,0.16863542,67263.0,67262.0,0.00488257]
[1721709592072,0.26863542,67263.0,67262.0,0.001]
[1721709592271,0.56597542,67263.0,67262.0,0.001]
[1721709592481,0.86331542,67263.0,67262.0,0.001]
[1721709592677,0.97933325,67263.0,67262.0,0.001]
[1721709592956,1.27667325,67263.0,67262.0,0.001]
[1721709593142,1.16065542,67263.0,67262.0,0.001]
[1721709593403,1.27665691,67263.0,67262.0,0.001]
[1721709594669,0.743437,67255.0,67254.0,0.0656]
[1721709594854,1.051982,67255.0,67254.0,0.0656]
[1721709595056,0.68111758,67255.0,67254.0,0.0656]
[1721709595272,0.97849258,67255.0,67254.0,0.0656]
[1721709595480,0.73950439,67254.0,67253.0,0.0812]
[1721709595686,0.446103,67249.0,67248.0,0.0653]
[1721709595891,0.56644432,67249.0,67248.0,0.0653]
[1721709596091,0.86384632,67249.0,67248.0,0.0653]
[1721709596657,0.97974898,67249.0,67248.0,0.0653]
[1721709596871,0.97974508,67249.0,67248.0,0.0653]
[1721709597276,0.68234308,67249.0,67248.0,0.0653]
[1721709597523,0.68334308,67249.0,67248.0,0.0653]
[1721709597698,0.98074508,67249.0,67248.0,0.0653]
[1721709597909,0.97974508,67249.0,67248.0,0.0653]
[1721709598101,0.98105776,67249.0,67248.0,0.0663]
[1721709598451,0.12134132,67249.0,67248.0,0.0653]
[1721709598642,0.46744432,67249.0,67248.0,0.0653]
[1721709598780,0.56844432,67249.0,67248.0,0.07020741]
[1721709598981,0.56844432,67249.0,67248.0,0.0663]
[1721709599343,0.56744432,67249.0,67248.0,0.0653]
[1721709599604,0.56744432,67249.0,67248.0,0.0663]
[1721709599808,0.12134132,67249.0,67248.0,0.0663]
[1721709600021,0.12234132,67249.0,67248.0,0.0663]
[1721709600228,0.12134132,67249.0,67248.0,0.07024351]
[1721709600404,0.27004232,67249.0,67248.0,0.07024351]
[1721709600613,0.27104232,67249.0,67248.0,0.0663]
[1721709601054,0.56844432,67249.0,67248.0,0.0663]
[1721709601255,0.86584632,67249.0,67248.0,0.0663]
[1721709601784,0.12234132,67249.0,67248.0,0.0663]
[1721709601996,0.12234132,67249.0,67248.0,0.07024298]
[1721709602186,0.12234132,67249.0,67248.0,0.0663]
[1721709602412,0.02234132,67249.0,67248.0,0.0663]
[1721709602612,0.12234132,67249.0,67248.0,0.0663]
[1721709602811,0.12234132,67249.0,67248.0,0.0702405]
[1721709603694,0.02234132,67249.0,67248.0,0.0702405]
[1721709603890,0.02234132,67249.0,67248.0,0.0663]
[1721709604117,0.02234132,67249.0,67248.0,0.07023867]
[1721709604327,0.17104232,67249.0,67248.0,0.07023867]
[1721709604551,0.56844432,67249.0,67248.0,0.0663]
[1721709605530,0.27104232,67249.0,67248.0,0.0663]
[1721709606356,0.56844432,67249.0,67248.0,0.0663]
[1721709606554,0.56844432,67249.0,67248.0,0.067224]
[1721709607277,0.27104232,67249.0,67248.0,0.067224]
[1721709607638,0.56844432,67249.0,67248.0,0.067224]
[1721709608764,0.27104232,67249.0,67248.0,0.067224]
[1721709608961,0.12234132,67249.0,67248.0,0.067224]
[1721709609376,0.12234132,67249.0,67248.0,0.07116217]
[1721709609785,0.27104232,67249.0,67248.0,0.07116217]
[1721709609940,0.12234132,67249.0,67248.0,0.067224]
[1721709610119,0.02234132,67249.0,67248.0,0.067224]
[1721709610320,0.02234132,67249.0,67248.0,0.07116217]
[1721709610957,0.02234132,67249.0,67248.0,0.215927]
[1721709611219,0.02234132,67249.0,67248.0,0.07116217]
[1721709611554,0.02234132,67249.0,67248.0,0.56200959]
[1721709611754,0.02234132,67249.0,67248.0,0.93491559]
[1721709612392,0.02234132,67249.0,67248.0,0.89017717]
[1721709612604,0.02134132,67249.0,67248.0,0.88917717]
[1721709612923,0.02134132,67249.0,67248.0,0.89017717]
[1721709613384,0.02234132,67249.0,67248.0,0.89217717]
[1721709613569,0.02134132,67249.0,67248.0,0.14666217]
[1721709613976,0.02234132,67249.0,67248.0,0.14866217]
[1721709614729,0.02134132,67249.0,67248.0,0.14766217]
[1721709614930,0.02234132,67249.0,67248.0,0.15766217]
[1721709615501,0.02134132,67249.0,67248.0,0.14766217]
[1721709615731,0.02134132,67249.0,67248.0,0.15566217]
[1721709616167,0.02234132,67249.0,67248.0,0.16166217]
[1721709616397,0.02234132,67249.0,67248.0,0.31036517]
[1721709616732,0.002,67249.0,67248.0,0.99569759]
[1721709617687,0.001,67249.0,67248.0,0.89517717]
[1721709617895,0.001,67249.0,67248.0,1.24258317]
[1721709618080,0.002,67249.0,67248.0,1.21958317]
[1721709618540,0.001,67249.0,67248.0,1.26558317]
[1721709618877,0.00084,67254.0,67253.0,0.93356]
[1721709619081,0.00084,67254.0,67253.0,0.90756]
[1721709619230,0.00084,67254.0,67253.0,0.91039882]
[1721709619448,0.00084,67254.0,67253.0,1.20778282]
[1721709619600,0.02090495,67254.0,67253.0,0.88739882]
[1721709619822,0.02090495,67254.0,67253.0,0.14493882]
[1721709620026,0.46797495,67254.0,67253.0,0.14493882]
[1721709620226,0.46797495,67254.0,67253.0,0.1411]
[1721709620452,0.56897495,67254.0,67253.0,0.1431]
[1721709620650,0.56897495,67254.0,67253.0,0.0827]
[1721709621234,0.12290495,67254.0,67253.0,0.0877]
[1721709621436,0.02290495,67254.0,67253.0,0.10651457]
[1721709621635,0.02190495,67254.0,67253.0,0.10151457]
[1721709621883,0.02190495,67254.0,67253.0,0.08650217]
[1721709622084,0.02290495,67254.0,67253.0,0.08950217]
[1721709622337,0.12469895,67254.0,67253.0,0.08950217]
[1721709622509,0.12190495,67254.0,67253.0,0.08750217]
[1721709623502,0.02290495,67254.0,67253.0,0.09350217]
[1721709623706,0.12290495,67254.0,67253.0,0.09350217]
[1721709624327,0.12390495,67254.0,67253.0,0.0897]
[1721709624769,0.02190495,67254.0,67253.0,0.08751398]
[1721709624983,0.12190495,67254.0,67253.0,0.08751398]
[1721709625186,0.12290495,67254.0,67253.0,0.09251398]
[1721709625405,1.01504495,67254.0,67253.0,0.008]
[1721709625612,1.35906758,67254.0,67253.0,0.01181398]
[1721709625815,1.35906758,67254.0,67253.0,0.008]
[1721709625816,0.9738148,67254.0,67253.0,0.008]
[1721709626056,1.08365347,67254.0,67253.0,0.008]
[1721709626262,0.9738148,67254.0,67253.0,0.008]
[1721709626461,0.744505,67249.0,67248.0,0.000924]
[1721709626635,0.97158257,67249.0,67248.0,0.000924]
[1721709627217,0.97209065,67249.0,67248.0,0.000924]
[1721709627918,0.76255642,67249.0,67248.0,0.000924]
[1721709628244,0.56772072,67249.0,67248.0,0.000924]
[1721709628617,0.56872072,67249.0,67248.0,0.004924]
[1721709628834,0.67550764,67249.0,67248.0,0.004924]
[1721709629096,0.67550764,67249.0,67248.0,0.000924]
[1721709629097,0.67450764,67249.0,67248.0,0.000924]
[1721709629311,0.97190964,67249.0,67248.0,0.003924]
[1721709629543,2.56077741,67249.0,67248.0,0.003924]
[1721709629751,2.77031164,67249.0,67248.0,0.003924]
[1721709630181,2.66252472,67249.0,67248.0,0.000924]
[1721709630393,2.76874574,67249.0,67248.0,0.000924]
[1721709630527,2.76974574,67249.0,67248.0,0.003924]
[1721709630916,2.77074574,67249.0,67248.0,0.003924]
[1721709631885,3.33614774,67249.0,67248.0,0.003924]
[1721709632089,3.23774574,67249.0,67248.0,0.000924]
[1721709632309,3.53514774,67249.0,67248.0,0.007924]
[1721709632484,3.58514774,67249.0,67248.0,0.007]
[1721709632727,3.58514774,67249.0,67231.0,0.002]
[1721709632728,0.744692,67232.0,67231.0,0.002]
[1721709632932,0.87247063,67232.0,67231.0,0.002]
[1721709633186,1.38004438,67232.0,67231.0,0.002]
[1721709633626,1.27027627,67232.0,67231.0,0.002]
[1721709634034,1.38004438,67232.0,67231.0,0.006]
[1721709634242,1.08256738,67232.0,67231.0,0.006]
[1721709634504,0.95404899,67232.0,67231.0,0.006]
[1721709634755,0.93208383,67232.0,67231.0,0.006]
[1721709635257,0.86624961,67232.0,67231.0,0.004]
[1721709635496,0.93208092,67232.0,67231.0,0.004]
[1721709635723,0.86624961,67232.0,67231.0,0.004]
[1721709635962,0.91013061,67232.0,67231.0,0.002]
[1721709636193,0.91013091,67232.0,67231.0,0.002]
[1721709636429,0.16643891,67232.0,67231.0,0.002]
[1721709636678,0.27129561,67232.0,67231.0,0.002]
[1721709637385,0.57249116,67232.0,67231.0,0.002]
[1721709637618,0.9320783,67232.0,67231.0,0.002]
[1721709638061,0.86624961,67232.0,67231.0,0.002]
[1721709638261,1.16372661,67232.0,67231.0,0.002]
[1721709638468,1.22953184,67232.0,67231.0,0.002]
[1721709638670,0.86624961,67232.0,67231.0,0.002]
[1721709639499,0.12255761,67232.0,67231.0,0.002]
[1721709639702,0.17229561,67232.0,67231.0,0.002]
[1721709639887,0.56977261,67232.0,67231.0,0.002]
[1721709640098,0.56977261,67232.0,67231.0,0.002924]
[1721709640213,0.94073903,67232.0,67231.0,0.002924]
[1721709640426,0.86624961,67232.0,67231.0,0.002924]
[1721709640636,0.86724961,67232.0,67231.0,0.002924]
[1721709641057,0.91111494,67232.0,67231.0,0.002924]
[1721709641465,0.86724961,67232.0,67231.0,0.002924]
[1721709643118,0.27229561,67232.0,67231.0,0.002924]
[1721709643325,0.27229561,67232.0,67231.0,0.066724]
[1721709643326,0.12255761,67232.0,67231.0,0.066724]
[1721709643582,0.12255761,67232.0,67231.0,0.145524]
[1721709643996,0.12355761,67232.0,67231.0,0.15274849]
[1721709644207,0.27229561,67232.0,67231.0,0.15274849]
[1721709644418,0.56977261,67232.0,67231.0,0.15274849]
[1721709644629,0.56977261,67232.0,67231.0,0.145524]
[1721709644823,0.86724961,67232.0,67231.0,0.145524]
[1721709646939,0.86724961,67232.0,67231.0,0.002924]
[1721709647151,0.93299424,67232.0,67231.0,0.002924]
[1721709647352,0.93297591,67232.0,67231.0,0.002924]
[1721709647752,0.86724961,67232.0,67231.0,0.002924]
[1721709648338,1.2304453,67232.0,67231.0,0.002924]
[1721709648540,1.23043948,67232.0,67231.0,0.002924]
[1721709648693,1.33584724,67232.0,67231.0,0.002924]
[1721709648868,1.27013437,67232.0,67231.0,0.002924]
[1721709649076,1.35675154,67232.0,67231.0,0.002924]
[1721709649277,1.55675154,67232.0,67231.0,0.002924]
[1721709649480,1.46913437,67232.0,67231.0,0.002924]
[1721709649697,1.76661137,67232.0,67231.0,0.002924]
[1721709650112,1.86122854,67232.0,67231.0,0.002924]
[1721709650333,1.85422854,67232.0,67231.0,0.002924]
[1721709650566,1.76661137,67232.0,67231.0,0.002924]
[1721709650739,1.83929346,67232.0,67231.0,0.002924]
[1721709650947,1.66820361,67232.0,67231.0,0.002924]
[1721709651124,1.77316034,67232.0,67231.0,0.002924]
[1721709651546,1.84482943,67232.0,67231.0,0.002924]
[1721709651996,1.77316034,67232.0,67231.0,0.002924]
[1721709652401,1.77916034,67232.0,67231.0,0.002924]
[1721709652636,1.84482523,67232.0,67231.0,0.002924]
[1721709652827,1.77916034,67232.0,67231.0,0.002924]
[1721709653026,1.82916034,67232.0,67231.0,0.002924]
[1721709653230,1.84482241,67232.0,67231.0,0.002924]
[1721709653564,1.84481578,67232.0,67231.0,0.002924]
[1721709653769,1.77916034,67232.0,67231.0,0.002924]
[1721709654134,1.7794941,67232.0,67231.0,0.002924]
[1721709654541,1.82325857,67232.0,67231.0,0.002924]
[1721709654715,1.7794941,67232.0,67231.0,0.002924]
[1721709654927,1.8794941,67232.0,67231.0,0.002924]
[1721709655112,1.91703221,67232.0,67231.0,0.002924]
[1721709655311,1.86703221,67232.0,67231.0,0.002924]
[1721709655536,1.8294941,67232.0,67231.0,0.002924]
[1721709655959,1.7794941,67232.0,67231.0,0.002924]
[1721709656683,1.8294941,67232.0,67231.0,0.002924]
[1721709656905,1.7794941,67232.0,67231.0,0.002924]
[1721709657104,1.83006144,67232.0,67231.0,0.002924]
[1721709657523,1.89568545,67232.0,67231.0,0.002924]
[1721709657769,1.94568545,67232.0,67231.0,0.002924]
[1721709657978,1.88006144,67232.0,67231.0,0.002924]
[1721709658399,1.87406144,67232.0,67231.0,0.002924]
[1721709658616,1.87406144,67232.0,67211.0,0.002]
[1721709658617,0.149771,67217.0,67211.0,0.002]
[1721709658835,1.07056237,67217.0,67212.0,0.0634]
[1721709659043,1.46438529,67217.0,67212.0,0.0634]
[1721709659898,1.35852746,67217.0,67212.0,0.0634]
[1721709660123,1.46496463,67217.0,67212.0,0.0634]
[1721709660332,1.17142163,67217.0,67212.0,0.0634]
[1721709660541,1.46897204,67217.0,67212.0,0.0634]
[1721709660758,0.68108604,67217.0,67212.0,0.0634]
[1721709660971,0.97862904,67217.0,67212.0,0.0634]
[1721709661182,1.27617204,67217.0,67212.0,0.0634]
[1721709661415,0.98262904,67217.0,67212.0,0.0634]
[1721709661836,0.68108604,67217.0,67212.0,0.0634]
[1721709662253,0.68509441,67217.0,67212.0,0.0634]
[1721709662680,0.38755141,67217.0,67212.0,0.0634]
[1721709662884,0.69002959,67217.0,67212.0,0.0634]
[1721709663300,0.68602959,67217.0,67212.0,0.0634]
[1721709663509,0.69102959,67217.0,67212.0,0.0634]
[1721709663717,0.23078041,67217.0,67212.0,0.0634]
[1721709663967,0.23078041,67217.0,67216.0,0.13589]
[1721709663968,0.12332746,67217.0,67216.0,0.13589]
[1721709664142,0.02532746,67217.0,67216.0,0.13589]
[1721709664359,0.02932746,67217.0,67216.0,0.14266732]
[1721709664575,0.02732746,67217.0,67216.0,0.14266732]
[1721709664785,0.18209846,67217.0,67216.0,0.14266732]
[1721709664985,0.28209846,67217.0,67216.0,0.14266732]
[1721709665236,0.28209846,67217.0,67216.0,0.13589]
[1721709665444,0.12432746,67217.0,67216.0,0.13589]
[1721709665658,0.12432746,67217.0,67216.0,0.14266732]
[1721709665659,0.27409846,67217.0,67216.0,0.14266732]
[1721709665864,0.27409846,67217.0,67216.0,0.13589]
[1721709666067,0.57164146,67217.0,67216.0,0.13589]
[1721709666273,0.86818446,67217.0,67216.0,0.13589]
[1721709666923,0.56964146,67217.0,67216.0,0.13589]
[1721709667330,0.57064146,67217.0,67216.0,0.13589]
[1721709667750,0.86818446,67217.0,67216.0,0.13589]
[1721709667957,0.97439946,67217.0,67216.0,0.13589]
[1721709668364,0.97439938,67217.0,67216.0,0.13589]
[1721709669845,1.46474238,67217.0,67216.0,0.13589]
[1721709670329,1.46474238,67217.0,67216.0,0.07579]
[1721709670531,1.16719938,67217.0,67216.0,0.07579]
[1721709671374,1.06098446,67217.0,67216.0,0.07579]
[1721709671592,1.16750663,67217.0,67216.0,0.07579]
[1721709671797,1.06098446,67217.0,67216.0,0.07579]
[1721709672015,1.1673599,67217.0,67216.0,0.07579]
[1721709674379,1.06098446,67217.0,67216.0,0.07579]
[1721709674583,1.16693117,67217.0,67216.0,0.07579]
[1721709675640,1.21087658,67217.0,67216.0,0.07579]
[1721709676721,1.16693117,67217.0,67216.0,0.07579]
[1721709676928,1.21091253,67217.0,67216.0,0.07579]
[1721709677337,1.16693117,67217.0,67216.0,0.07579]
[1721709677559,1.16722063,67217.0,67216.0,0.07579]
[1721709678628,1.23319671,67217.0,67216.0,0.07579]
[1721709679311,1.53076134,67217.0,67216.0,0.07579]
[1721709679519,1.55273174,67217.0,67216.0,9e-05]
[1721709680345,1.76224213,67217.0,67216.0,9e-05]
[1721709680987,2.03208562,67217.0,67216.0,9e-05]
[1721709681445,2.37962862,67217.0,67216.0,9e-05]
[1721709681684,2.37962862,67217.0,67210.0,0.0151168]
[1721709681685,0.149785,67211.0,67210.0,0.0151168]
[1721709681922,1.01714675,67211.0,67210.0,0.0151168]
[1721709682147,1.75606892,67211.0,67210.0,0.0151168]
[1721709683466,1.97730265,67211.0,67210.0,0.0151168]
[1721709683879,1.97768356,67211.0,67210.0,0.0151168]
[1721709684085,1.72088356,67211.0,67210.0,0.0151168]
[1721709684294,1.71068356,67211.0,67210.0,0.0151168]
[1721709684532,1.77785335,67211.0,67210.0,0.0151168]
[1721709684736,1.042558,67207.0,67206.0,0.02608243]
[1721709684949,1.27509978,67207.0,67206.0,0.02608243]
[1721709685814,1.25509978,67207.0,67206.0,0.02608243]
[1721709686425,1.25505187,67207.0,67206.0,0.02608243]
[1721709686651,1.95942702,67207.0,67206.0,0.02608243]
[1721709686865,2.11442702,67207.0,67206.0,0.02608243]
[1721709687487,2.12042702,67207.0,67206.0,0.02608243]
[1721709688311,1.76362702,67207.0,67206.0,0.02608243]
[1721709689345,1.76405204,67207.0,67206.0,0.02608243]
[1721709690825,1.81405204,67207.0,67206.0,0.02608243]
[1721709691269,1.76405204,67207.0,67206.0,0.02608243]
[1721709691771,1.76405135,67207.0,67206.0,0.02608243]
[1721709692015,1.76405115,67207.0,67206.0,0.02608243]
[1721709692504,1.81396106,67207.0,67206.0,0.02608243]
[1721709692738,1.94585094,67207.0,67206.0,0.02608243]
[1721709692969,1.81396106,67207.0,67206.0,0.02608243]
[1721709693203,1.94585094,67207.0,67206.0,0.02608243]
[1721709693447,1.89585094,67207.0,67206.0,0.02608243]
[1721709693918,1.76396106,67207.0,67206.0,0.02608243]
[1721709694162,1.81396106,67207.0,67206.0,0.02608243]
[1721709694652,1.94585094,67207.0,67206.0,0.02608243]
[1721709694884,1.81396106,67207.0,67206.0,0.02608243]
[1721709695590,1.81401864,67207.0,67206.0,0.02608243]